[Event "Early-Titled-Tuesday-Blitz-May-07-2024"]
[Site "Chess.com"]
[Date "2024.05.07"]
[Round "10"]
[White "Yerkinio"]
[Black "Artemiki"]
[Result "1/2-1/2"]
[WhiteElo "2667"]
[BlackElo "2513"]
[TimeControl "180+1"]
[EndTime "10:01:20 PDT"]
[Termination "Game drawn by repetition"]

1. e4 {[%clk 0:03:00.9]} 1... c6 {[%clk 0:02:58.5]} 2. d4 {[%clk 0:02:59.6]}
2... d5 {[%clk 0:02:57.9]} 3. e5 {[%clk 0:02:59.3]} 3... c5 {[%clk 0:02:56.7]}
4. dxc5 {[%clk 0:02:57.6]} 4... e6 {[%clk 0:02:51.5]} 5. Nf3 {[%clk 0:02:55.8]}
5... Bxc5 {[%clk 0:02:50.4]} 6. a3 {[%clk 0:02:56.3]} 6... Ne7 {[%clk
0:02:46.8]} 7. b4 {[%clk 0:02:52.3]} 7... Bb6 {[%clk 0:02:47.2]} 8. Bb2 {[%clk
0:02:47.7]} 8... Nbc6 {[%clk 0:02:44.8]} 9. h4 {[%clk 0:02:38.9]} 9... h5 {[%clk
0:02:41]} 10. Bd3 {[%clk 0:02:36.6]} 10... Nf5 {[%clk 0:02:24.9]} 11. Bxf5
{[%clk 0:02:34.5]} 11... exf5 {[%clk 0:02:25.8]} 12. Nc3 {[%clk 0:02:25.2]}
12... Be6 {[%clk 0:02:24.8]} 13. Nb5 {[%clk 0:02:25.2]} 13... O-O {[%clk
0:02:19.1]} 14. O-O {[%clk 0:02:22.2]} 14... a6 {[%clk 0:02:06.1]} 15. Nbd4
{[%clk 0:02:21.5]} 15... Nxd4 {[%clk 0:02:02.2]} 16. Bxd4 {[%clk 0:02:21.2]}
16... Rc8 {[%clk 0:02:02.1]} 17. c3 {[%clk 0:02:07.9]} 17... Bxd4 {[%clk
0:01:46.4]} 18. cxd4 {[%clk 0:02:08.8]} 18... Rc4 {[%clk 0:01:44]} 19. Qd2
{[%clk 0:02:06]} 19... Qe7 {[%clk 0:01:15.5]} 20. Rac1 {[%clk 0:01:55.3]} 20...
Rfc8 {[%clk 0:01:14.8]} 21. Rxc4 {[%clk 0:01:55.7]} 21... Rxc4 {[%clk
0:01:08.5]} 22. Rc1 {[%clk 0:01:54.9]} 22... Qc7 {[%clk 0:01:01.9]} 23. Rxc4
{[%clk 0:01:51.2]} 23... Qxc4 {[%clk 0:01:02.8]} 24. Qg5 {[%clk 0:01:45.6]}
24... Qc3 {[%clk 0:00:24.3]} 25. Qd8+ {[%clk 0:01:44]} 25... Kh7 {[%clk
0:00:24.5]} 26. Ng5+ {[%clk 0:01:42.3]} 26... Kg6 {[%clk 0:00:24.7]} 27. Qh8
{[%clk 0:01:36.4]} 27... Qc1+ {[%clk 0:00:19.8]} 28. Kh2 {[%clk 0:01:32.9]}
28... Qf4+ {[%clk 0:00:20.1]} 29. Kh3 {[%clk 0:01:24.9]} 29... Qg4+ {[%clk
0:00:19.7]} 30. Kh2 {[%clk 0:01:25.5]} 30... Qf4+ {[%clk 0:00:11.9]} 31. Kh1
{[%clk 0:01:23.6]} 31... Qc1+ {[%clk 0:00:10.5]} 32. Kh2 {[%clk 0:01:24.2]}
32... Qf4+ {[%clk 0:00:09.7]} 1/2-1/2

[Event "Early-Titled-Tuesday-Blitz-May-07-2024"]
[Site "Chess.com"]
[Date "2024.05.07"]
[Round "10"]
[White "GoltsevDmitry2000"]
[Black "miaou33"]
[Result "1-0"]
[WhiteElo "2764"]
[BlackElo "2561"]
[TimeControl "180+1"]
[EndTime "10:01:23 PDT"]
[Termination "GoltsevDmitry2000 won on time"]

1. e4 {[%clk 0:03:00.1]} 1... c5 {[%clk 0:03:00.2]} 2. Nf3 {[%clk 0:03:00.5]}
2... d6 {[%clk 0:03:00.6]} 3. d4 {[%clk 0:03:01.1]} 3... cxd4 {[%clk 0:03:01.5]}
4. Nxd4 {[%clk 0:03:02]} 4... Nf6 {[%clk 0:03:01.6]} 5. Nc3 {[%clk 0:03:02.5]}
5... g6 {[%clk 0:03:02.2]} 6. Be2 {[%clk 0:03:02.9]} 6... Bg7 {[%clk 0:03:02.7]}
7. O-O {[%clk 0:03:03.5]} 7... O-O {[%clk 0:03:03.4]} 8. Be3 {[%clk 0:03:03.8]}
8... Nc6 {[%clk 0:03:03.6]} 9. f4 {[%clk 0:03:03.9]} 9... Bd7 {[%clk 0:02:55.6]}
10. Bf3 {[%clk 0:03:03]} 10... Qa5 {[%clk 0:02:20.4]} 11. Qd2 {[%clk 0:02:48.2]}
11... Rfe8 {[%clk 0:01:54.6]} 12. Rad1 {[%clk 0:02:45.3]} 12... Nxd4 {[%clk
0:01:52.3]} 13. Bxd4 {[%clk 0:02:45.1]} 13... e5 {[%clk 0:01:34.3]} 14. Be3
{[%clk 0:02:40.8]} 14... Bc6 {[%clk 0:01:32.5]} 15. Qxd6 {[%clk 0:02:34.3]}
15... Rad8 {[%clk 0:01:17.7]} 16. Qc5 {[%clk 0:02:24.7]} 16... Qxc5 {[%clk
0:01:17.5]} 17. Bxc5 {[%clk 0:02:25.6]} 17... b6 {[%clk 0:01:18]} 18. Rxd8
{[%clk 0:02:19.2]} 18... Rxd8 {[%clk 0:01:18]} 19. Be3 {[%clk 0:02:20.1]} 19...
Bh6 {[%clk 0:01:13.3]} 20. g3 {[%clk 0:02:15.9]} 20... Re8 {[%clk 0:01:11.8]}
21. Re1 {[%clk 0:02:12.9]} 21... Nd7 {[%clk 0:00:59]} 22. f5 {[%clk 0:02:07.7]}
22... Bxe3+ {[%clk 0:00:53.7]} 23. Rxe3 {[%clk 0:02:08.6]} 23... Kf8 {[%clk
0:00:18.8]} 24. Kf2 {[%clk 0:02:07.2]} 24... Ke7 {[%clk 0:00:18.8]} 25. h3
{[%clk 0:02:05.1]} 25... Nc5 {[%clk 0:00:19]} 26. b4 {[%clk 0:02:02.7]} 26...
Nd7 {[%clk 0:00:18]} 27. g4 {[%clk 0:02:02.7]} 27... Rd8 {[%clk 0:00:17.4]} 28.
Be2 {[%clk 0:01:58]} 28... Nf6 {[%clk 0:00:12.1]} 29. g5 {[%clk 0:01:57.2]}
29... Nd7 {[%clk 0:00:11.5]} 30. f6+ {[%clk 0:01:57.5]} 30... Ke8 {[%clk
0:00:10.6]} 31. Bc4 {[%clk 0:01:52.9]} 31... Nf8 {[%clk 0:00:10.8]} 32. Nb5
{[%clk 0:01:49.6]} 32... a6 {[%clk 0:00:07.4]} 33. Nc7+ {[%clk 0:01:49.5]} 33...
Kd7 {[%clk 0:00:07.1]} 34. Nxa6 {[%clk 0:01:50.4]} 34... b5 {[%clk 0:00:03.5]}
35. Bxf7 {[%clk 0:01:49.3]} 35... Ra8 {[%clk 0:00:02.9]} 36. Nc5+ {[%clk
0:01:50.2]} 36... Kc7 {[%clk 0:00:03.1]} 37. a3 {[%clk 0:01:51]} 37... Nd7
{[%clk 0:00:02.5]} 38. Ne6+ {[%clk 0:01:51.3]} 38... Kb6 {[%clk 0:00:01.8]} 39.
Rd3 {[%clk 0:01:51.3]} 39... Nb8 {[%clk 0:00:00.3]} 40. Nc5 {[%clk 0:01:47.2]}
1-0

[Event "Early-Titled-Tuesday-Blitz-May-07-2024"]
[Site "Chess.com"]
[Date "2024.05.07"]
[Round "10"]
[White "WhiteKnight2612"]
[Black "SRob2003"]
[Result "1/2-1/2"]
[WhiteElo "2839"]
[BlackElo "2670"]
[TimeControl "180+1"]
[EndTime "10:01:25 PDT"]
[Termination "Game drawn by repetition"]

1. e4 {[%clk 0:03:00.9]} 1... c5 {[%clk 0:03:00.1]} 2. Nf3 {[%clk 0:02:59.7]}
2... Nc6 {[%clk 0:03:00.8]} 3. d4 {[%clk 0:02:59.5]} 3... cxd4 {[%clk
0:03:00.4]} 4. Nxd4 {[%clk 0:03:00.4]} 4... Nf6 {[%clk 0:03:00.8]} 5. Nc3 {[%clk
0:03:00]} 5... e5 {[%clk 0:03:00.4]} 6. Ndb5 {[%clk 0:03:00.7]} 6... d6 {[%clk
0:03:01.1]} 7. Bg5 {[%clk 0:03:00.7]} 7... a6 {[%clk 0:03:01.6]} 8. Na3 {[%clk
0:03:00.7]} 8... b5 {[%clk 0:03:02.3]} 9. Nd5 {[%clk 0:03:00.9]} 9... Be7 {[%clk
0:03:02.9]} 10. Bxf6 {[%clk 0:03:00.6]} 10... Bxf6 {[%clk 0:03:03.8]} 11. c3
{[%clk 0:02:58.8]} 11... O-O {[%clk 0:03:04.4]} 12. Nc2 {[%clk 0:02:58.8]} 12...
Rb8 {[%clk 0:03:05]} 13. a4 {[%clk 0:02:57]} 13... bxa4 {[%clk 0:03:03.2]} 14.
Rxa4 {[%clk 0:02:53.7]} 14... Rxb2 {[%clk 0:03:00.3]} 15. Bxa6 {[%clk
0:02:54.2]} 15... Bd7 {[%clk 0:02:54.9]} 16. Ra1 {[%clk 0:02:52.8]} 16... Bg5
{[%clk 0:02:51.8]} 17. O-O {[%clk 0:02:52.8]} 17... Ne7 {[%clk 0:02:47.3]} 18.
Nde3 {[%clk 0:02:49.5]} 18... Bc6 {[%clk 0:02:43.2]} 19. Bd3 {[%clk 0:02:44.6]}
19... Rb8 {[%clk 0:02:38]} 20. Qe2 {[%clk 0:02:40.6]} 20... g6 {[%clk
0:02:33.9]} 21. Nb4 {[%clk 0:02:40.2]} 21... Bb7 {[%clk 0:02:29.1]} 22. Rfd1
{[%clk 0:02:40.3]} 22... Qb6 {[%clk 0:02:28]} 23. Nc4 {[%clk 0:02:38.7]} 23...
Qc7 {[%clk 0:02:23]} 24. g3 {[%clk 0:02:13]} 24... h5 {[%clk 0:02:19.2]} 25. Na6
{[%clk 0:02:03.8]} 25... Bxa6 {[%clk 0:02:13.7]} 26. Rxa6 {[%clk 0:02:04.7]}
26... Rfd8 {[%clk 0:02:11.4]} 27. Qa2 {[%clk 0:02:04.6]} 27... d5 {[%clk
0:01:52.8]} 28. exd5 {[%clk 0:01:53.1]} 28... Nxd5 {[%clk 0:01:52.4]} 29. Bxg6
{[%clk 0:01:27.8]} 29... Nxc3 {[%clk 0:01:48.3]} 30. Rxd8+ {[%clk 0:01:27.3]}
30... Rxd8 {[%clk 0:01:41.6]} 31. Qb3 {[%clk 0:01:27.7]} 31... Ne2+ {[%clk
0:01:29.7]} 32. Kg2 {[%clk 0:00:49.9]} 32... Nd4 {[%clk 0:01:30.6]} 33. Qb4
{[%clk 0:00:50.1]} 33... Rb8 {[%clk 0:01:20.1]} 34. Qd6 {[%clk 0:00:49.7]} 34...
Qb7+ {[%clk 0:01:12.6]} 35. Kh3 {[%clk 0:00:48.6]} 35... Qc8+ {[%clk 0:01:09]}
36. Kg2 {[%clk 0:00:48.5]} 36... Qb7+ {[%clk 0:01:09.6]} 37. Kh3 {[%clk
0:00:26.3]} 37... Qc8+ {[%clk 0:01:09.3]} 38. Kg2 {[%clk 0:00:27]} 38... Qb7+
{[%clk 0:01:09.9]} 1/2-1/2

[Event "Early-Titled-Tuesday-Blitz-May-07-2024"]
[Site "Chess.com"]
[Date "2024.05.07"]
[Round "10"]
[White "th3d4rkness"]
[Black "rikchessmx"]
[Result "0-1"]
[WhiteElo "2214"]
[BlackElo "2383"]
[TimeControl "180+1"]
[EndTime "10:01:28 PDT"]
[Termination "rikchessmx won on time"]

1. e4 {[%clk 0:03:00.9]} 1... e5 {[%clk 0:02:59.7]} 2. Nf3 {[%clk 0:03:00.2]}
2... Nc6 {[%clk 0:02:39.2]} 3. d4 {[%clk 0:02:59.3]} 3... exd4 {[%clk
0:02:37.8]} 4. Bc4 {[%clk 0:02:59.6]} 4... Bc5 {[%clk 0:02:36.7]} 5. O-O {[%clk
0:02:56]} 5... d6 {[%clk 0:02:35.5]} 6. c3 {[%clk 0:02:55.1]} 6... dxc3 {[%clk
0:02:35]} 7. Nxc3 {[%clk 0:02:47.8]} 7... h6 {[%clk 0:02:34.1]} 8. Qb3 {[%clk
0:02:25.6]} 8... Qf6 {[%clk 0:02:31.6]} 9. Nd5 {[%clk 0:02:22.7]} 9... Qd8
{[%clk 0:02:30.3]} 10. Nc3 {[%clk 0:01:51.5]} 10... Qd7 {[%clk 0:02:23.9]} 11.
e5 {[%clk 0:01:47.5]} 11... dxe5 {[%clk 0:02:15.2]} 12. Rd1 {[%clk 0:01:45.2]}
12... Nd4 {[%clk 0:02:09.3]} 13. Nxd4 {[%clk 0:01:28.5]} 13... exd4 {[%clk
0:02:09.2]} 14. Ne4 {[%clk 0:01:20.7]} 14... Bb6 {[%clk 0:01:59]} 15. Be3 {[%clk
0:01:13.8]} 15... Qf5 {[%clk 0:01:38.7]} 16. Ng3 {[%clk 0:01:10.4]} 16... Qf6
{[%clk 0:01:38.5]} 17. Bd2 {[%clk 0:00:57.7]} 17... Ne7 {[%clk 0:01:34]} 18. a4
{[%clk 0:00:52.6]} 18... a5 {[%clk 0:01:32.9]} 19. Nh5 {[%clk 0:00:23.7]} 19...
Qg6 {[%clk 0:01:26.9]} 20. Nf4 {[%clk 0:00:23.5]} 20... Qf5 {[%clk 0:01:26.1]}
21. Bd3 {[%clk 0:00:10.5]} 21... Qc5 {[%clk 0:01:09.5]} 22. Rac1 {[%clk
0:00:08.8]} 22... Qd6 {[%clk 0:01:04.7]} 23. Nh5 {[%clk 0:00:03.6]} 23... O-O
{[%clk 0:01:04.7]} 24. Bf4 {[%clk 0:00:03.4]} 24... Qd5 {[%clk 0:01:01.2]} 25.
Bc4 {[%clk 0:00:02.8]} 25... Qxh5 {[%clk 0:01:00.9]} 0-1

[Event "Early-Titled-Tuesday-Blitz-May-07-2024"]
[Site "Chess.com"]
[Date "2024.05.07"]
[Round "10"]
[White "Flaccidmoves"]
[Black "AnaKuchava"]
[Result "1-0"]
[WhiteElo "2379"]
[BlackElo "2203"]
[TimeControl "180+1"]
[EndTime "10:01:30 PDT"]
[Termination "Flaccidmoves won by checkmate"]

1. Nf3 {[%clk 0:03:00.9]} 1... d5 {[%clk 0:02:59.2]} 2. e3 {[%clk 0:03:00.9]}
2... c5 {[%clk 0:02:56.8]} 3. d4 {[%clk 0:02:54.9]} 3... Nf6 {[%clk 0:02:55.3]}
4. Bd3 {[%clk 0:02:48.5]} 4... Nc6 {[%clk 0:02:52.8]} 5. h3 {[%clk 0:02:41.1]}
5... e6 {[%clk 0:02:48.7]} 6. O-O {[%clk 0:02:39.9]} 6... Be7 {[%clk 0:02:40]}
7. Nbd2 {[%clk 0:02:31.8]} 7... O-O {[%clk 0:02:39.2]} 8. b3 {[%clk 0:02:29.1]}
8... a6 {[%clk 0:02:24.6]} 9. Bb2 {[%clk 0:02:28.4]} 9... b5 {[%clk 0:02:23.2]}
10. dxc5 {[%clk 0:02:21.9]} 10... Bxc5 {[%clk 0:02:21.3]} 11. e4 {[%clk
0:02:22.3]} 11... dxe4 {[%clk 0:02:20.3]} 12. Nxe4 {[%clk 0:02:22]} 12... Be7
{[%clk 0:02:19.9]} 13. Qe2 {[%clk 0:02:08.1]} 13... Bb7 {[%clk 0:02:18.4]} 14.
Rad1 {[%clk 0:02:05.7]} 14... Nd5 {[%clk 0:02:00]} 15. Neg5 {[%clk 0:01:59.7]}
15... Bxg5 {[%clk 0:01:56.7]} 16. c4 {[%clk 0:01:55]} 16... Nf4 {[%clk
0:01:30.8]} 17. Bxh7+ {[%clk 0:01:53.5]} 17... Kxh7 {[%clk 0:01:30.8]} 18. Qe4+
{[%clk 0:01:53.6]} 18... f5 {[%clk 0:01:30.4]} 19. Rxd8 {[%clk 0:01:49.6]} 19...
fxe4 {[%clk 0:01:28.9]} 20. Nxg5+ {[%clk 0:01:49.6]} 20... Kg6 {[%clk
0:01:28.2]} 21. Rd7 {[%clk 0:01:33.9]} 21... Kxg5 {[%clk 0:01:19.2]} 22. Rxg7+
{[%clk 0:01:33.1]} 22... Kh6 {[%clk 0:01:14]} 23. Rxb7 {[%clk 0:01:32.4]} 23...
Rg8 {[%clk 0:01:09.9]} 24. g3 {[%clk 0:01:29.1]} 24... Nxh3+ {[%clk 0:01:07]}
25. Kh2 {[%clk 0:01:26]} 25... Ng5 {[%clk 0:01:06.8]} 26. Rh1 {[%clk 0:01:14.8]}
26... e5 {[%clk 0:00:58.1]} 27. Kg2+ {[%clk 0:01:09]} 27... Kg6 {[%clk
0:00:57.8]} 28. Rb6 {[%clk 0:01:09]} 28... Rgc8 {[%clk 0:00:52.7]} 29. cxb5
{[%clk 0:01:08.9]} 29... axb5 {[%clk 0:00:52.4]} 30. Rc1 {[%clk 0:01:09]} 30...
Rxa2 {[%clk 0:00:48.4]} 31. Rcxc6+ {[%clk 0:01:08.7]} 31... Rxc6 {[%clk
0:00:49.3]} 32. Rxc6+ {[%clk 0:01:09.6]} 32... Kf5 {[%clk 0:00:46.1]} 33. Bc1
{[%clk 0:00:50.4]} 33... Nf3 {[%clk 0:00:39]} 34. Kh3 {[%clk 0:00:42.5]} 34...
Rxf2 {[%clk 0:00:35.9]} 35. g4# {[%clk 0:00:42.5]} 1-0

[Event "Early-Titled-Tuesday-Blitz-May-07-2024"]
[Site "Chess.com"]
[Date "2024.05.07"]
[Round "10"]
[White "LileKoridze"]
[Black "Senn71"]
[Result "1-0"]
[WhiteElo "2385"]
[BlackElo "2230"]
[TimeControl "180+1"]
[EndTime "10:01:31 PDT"]
[Termination "LileKoridze won by resignation"]

1. d4 {[%clk 0:03:00.9]} 1... d5 {[%clk 0:02:51.7]} 2. c4 {[%clk 0:03:00.8]}
2... c6 {[%clk 0:02:51]} 3. Nf3 {[%clk 0:03:00.1]} 3... Nf6 {[%clk 0:02:50.3]}
4. e3 {[%clk 0:02:59.4]} 4... Bf5 {[%clk 0:02:49]} 5. Nc3 {[%clk 0:02:57.4]}
5... e6 {[%clk 0:02:48.9]} 6. Bd3 {[%clk 0:02:56.5]} 6... Bg6 {[%clk 0:02:47.7]}
7. Bxg6 {[%clk 0:02:55.1]} 7... hxg6 {[%clk 0:02:47.1]} 8. Qb3 {[%clk 0:02:54]}
8... Qc7 {[%clk 0:02:46.5]} 9. h3 {[%clk 0:02:51.3]} 9... Nbd7 {[%clk
0:02:40.6]} 10. Bd2 {[%clk 0:02:19.3]} 10... Bd6 {[%clk 0:02:31.3]} 11. Rc1
{[%clk 0:02:16.3]} 11... Rc8 {[%clk 0:02:27.8]} 12. cxd5 {[%clk 0:02:15.1]}
12... exd5 {[%clk 0:02:26.3]} 13. O-O {[%clk 0:02:07.7]} 13... a6 {[%clk
0:02:22.9]} 14. Nxd5 {[%clk 0:01:40.9]} 14... Nxd5 {[%clk 0:02:18.1]} 15. e4
{[%clk 0:01:41.4]} 15... Nf4 {[%clk 0:02:05.7]} 16. Rfe1 {[%clk 0:01:29.5]}
16... Be7 {[%clk 0:01:50.4]} 17. d5 {[%clk 0:01:00.2]} 17... c5 {[%clk
0:01:28.9]} 18. e5 {[%clk 0:00:56.6]} 18... Nxh3+ {[%clk 0:01:13.1]} 19. gxh3
{[%clk 0:00:56.1]} 19... Rxh3 {[%clk 0:01:13.7]} 20. Kg2 {[%clk 0:00:54.2]}
20... Rh5 {[%clk 0:01:11]} 21. d6 {[%clk 0:00:52.7]} 21... Qc6 {[%clk
0:01:10.4]} 22. dxe7 {[%clk 0:00:52.1]} 22... Kxe7 {[%clk 0:01:09.1]} 23. e6
{[%clk 0:00:46.9]} 23... c4 {[%clk 0:00:46.4]} 24. exd7+ {[%clk 0:00:46.1]}
24... Kxd7 {[%clk 0:00:45.8]} 25. Qe3 {[%clk 0:00:43.5]} 25... Kc7 {[%clk
0:00:41]} 26. Qf4+ {[%clk 0:00:39.4]} 26... Qd6 {[%clk 0:00:38.1]} 27. Rxc4+
{[%clk 0:00:38]} 27... Kd7 {[%clk 0:00:37.9]} 28. Qxd6+ {[%clk 0:00:37.4]} 1-0

[Event "Early-Titled-Tuesday-Blitz-May-07-2024"]
[Site "Chess.com"]
[Date "2024.05.07"]
[Round "10"]
[White "yaguigor"]
[Black "Cheer_Down"]
[Result "1-0"]
[WhiteElo "2585"]
[BlackElo "2472"]
[TimeControl "180+1"]
[EndTime "10:01:33 PDT"]
[Termination "yaguigor won by resignation"]

1. e4 {[%clk 0:03:00.9]} 1... e6 {[%clk 0:02:59.9]} 2. d4 {[%clk 0:02:59.9]}
2... d5 {[%clk 0:03:00.4]} 3. Nc3 {[%clk 0:03:00.6]} 3... Nf6 {[%clk 0:03:00.3]}
4. e5 {[%clk 0:03:00.9]} 4... Nfd7 {[%clk 0:03:00.6]} 5. f4 {[%clk 0:03:01.7]}
5... c5 {[%clk 0:03:01]} 6. Nf3 {[%clk 0:03:02.4]} 6... Nc6 {[%clk 0:03:01.4]}
7. Be3 {[%clk 0:03:02.9]} 7... cxd4 {[%clk 0:03:01.8]} 8. Nxd4 {[%clk
0:03:00.6]} 8... Bc5 {[%clk 0:03:01.6]} 9. Qd2 {[%clk 0:02:59.7]} 9... Bxd4
{[%clk 0:03:02]} 10. Bxd4 {[%clk 0:02:58.8]} 10... Nxd4 {[%clk 0:03:02.9]} 11.
Qxd4 {[%clk 0:02:58.2]} 11... Qb6 {[%clk 0:03:03.5]} 12. Qxb6 {[%clk 0:02:57.9]}
12... Nxb6 {[%clk 0:03:03.8]} 13. Nb5 {[%clk 0:02:56.4]} 13... Ke7 {[%clk
0:03:01.9]} 14. b3 {[%clk 0:02:52.6]} 14... Bd7 {[%clk 0:02:59.8]} 15. Nd4
{[%clk 0:02:51.7]} 15... f6 {[%clk 0:02:53.2]} 16. Kd2 {[%clk 0:02:50.1]} 16...
fxe5 {[%clk 0:02:51.4]} 17. fxe5 {[%clk 0:02:49.6]} 17... Raf8 {[%clk
0:02:43.8]} 18. Re1 {[%clk 0:02:46.1]} 18... Rf2+ {[%clk 0:02:35.2]} 19. Re2
{[%clk 0:02:45.1]} 19... Rhf8 {[%clk 0:02:35.2]} 20. Ke1 {[%clk 0:02:45.3]}
20... R2f4 {[%clk 0:02:30.9]} 21. c3 {[%clk 0:02:39.3]} 21... Rc8 {[%clk
0:02:22.4]} 22. g3 {[%clk 0:02:35.7]} 22... Rff8 {[%clk 0:02:15.1]} 23. Kd2
{[%clk 0:02:35]} 23... Be8 {[%clk 0:02:13.5]} 24. Bh3 {[%clk 0:02:33.9]} 24...
Bh5 {[%clk 0:02:05.7]} 25. Rg2 {[%clk 0:02:32]} 25... Bf3 {[%clk 0:01:55.4]} 26.
Nxf3 {[%clk 0:02:28.4]} 26... Rxf3 {[%clk 0:01:55.3]} 27. Rc1 {[%clk 0:02:28.8]}
27... Nd7 {[%clk 0:01:49.8]} 28. Re2 {[%clk 0:02:27.8]} 28... Nc5 {[%clk
0:01:49.4]} 29. Bg2 {[%clk 0:02:25]} 29... Rf5 {[%clk 0:01:21.6]} 30. c4 {[%clk
0:02:24.3]} 30... Nd7 {[%clk 0:01:12.5]} 31. cxd5 {[%clk 0:02:22.9]} 31... Rxc1
{[%clk 0:01:07.3]} 32. Kxc1 {[%clk 0:02:23.8]} 32... exd5 {[%clk 0:01:05.5]} 33.
Bxd5 {[%clk 0:02:21.7]} 33... b6 {[%clk 0:01:04.9]} 34. Bg8 {[%clk 0:02:15.4]}
34... h6 {[%clk 0:01:04]} 35. e6 {[%clk 0:02:14.3]} 35... Ne5 {[%clk 0:00:54.4]}
36. Kc2 {[%clk 0:02:10.6]} 36... Nc6 {[%clk 0:00:51.5]} 37. Kb2 {[%clk
0:01:50.1]} 37... Rf8 {[%clk 0:00:48.9]} 38. Bf7 {[%clk 0:01:47.3]} 38... Nd8
{[%clk 0:00:45.7]} 39. Kc3 {[%clk 0:01:46.2]} 39... Nc6 {[%clk 0:00:43.3]} 40.
Rd2 {[%clk 0:01:41]} 40... Ne5 {[%clk 0:00:43]} 41. Re2 {[%clk 0:01:39.3]} 41...
Nc6 {[%clk 0:00:41.6]} 42. Kb2 {[%clk 0:01:35.2]} 42... Nd4 {[%clk 0:00:36.4]}
43. Re4 {[%clk 0:01:30.9]} 43... Nc6 {[%clk 0:00:34.5]} 44. Rc4 {[%clk
0:01:28.3]} 44... Kd6 {[%clk 0:00:32.9]} 45. Rxc6+ {[%clk 0:01:25.7]} 45... Kxc6
{[%clk 0:00:31.1]} 1-0

[Event "Early-Titled-Tuesday-Blitz-May-07-2024"]
[Site "Chess.com"]
[Date "2024.05.07"]
[Round "10"]
[White "Alina_Gumerovna"]
[Black "kidagent"]
[Result "0-1"]
[WhiteElo "2186"]
[BlackElo "2360"]
[TimeControl "180+1"]
[EndTime "10:01:35 PDT"]
[Termination "kidagent won on time"]

1. e4 {[%clk 0:03:00]} 1... c6 {[%clk 0:02:59.9]} 2. d4 {[%clk 0:02:58.9]} 2...
d5 {[%clk 0:03:00.6]} 3. e5 {[%clk 0:02:59.2]} 3... Bf5 {[%clk 0:03:00.7]} 4. h4
{[%clk 0:02:58.5]} 4... h5 {[%clk 0:03:00.1]} 5. Bd3 {[%clk 0:02:55.1]} 5...
Bxd3 {[%clk 0:03:00]} 6. cxd3 {[%clk 0:02:56]} 6... e6 {[%clk 0:02:59.8]} 7. Bg5
{[%clk 0:02:52.8]} 7... Qb6 {[%clk 0:02:58.6]} 8. Ne2 {[%clk 0:02:30.2]} 8...
Ne7 {[%clk 0:02:39.1]} 9. Nd2 {[%clk 0:02:14.8]} 9... Nf5 {[%clk 0:02:37.3]} 10.
Nb3 {[%clk 0:02:04]} 10... Bb4+ {[%clk 0:02:31.5]} 11. Bd2 {[%clk 0:02:01.3]}
11... Nd7 {[%clk 0:02:30.5]} 12. Bxb4 {[%clk 0:01:47.5]} 12... Qxb4+ {[%clk
0:02:31.4]} 13. Qd2 {[%clk 0:01:48]} 13... Qb6 {[%clk 0:02:28.3]} 14. Qg5 {[%clk
0:01:03.4]} 14... Qb4+ {[%clk 0:02:10.2]} 15. Qd2 {[%clk 0:01:00.5]} 15... Qe7
{[%clk 0:02:09.7]} 16. Qg5 {[%clk 0:00:40.7]} 16... f6 {[%clk 0:02:03.1]} 17.
Qg6+ {[%clk 0:00:20.8]} 17... Qf7 {[%clk 0:02:02.8]} 18. Nf4 {[%clk 0:00:16.6]}
18... Qxg6 {[%clk 0:01:55.9]} 19. Nxg6 {[%clk 0:00:16.3]} 19... Rh6 {[%clk
0:01:55.7]} 20. Nf4 {[%clk 0:00:02.5]} 20... fxe5 {[%clk 0:01:55.8]} 21. dxe5
{[%clk 0:00:02.6]} 21... Nxe5 {[%clk 0:01:55.5]} 22. O-O-O {[%clk 0:00:02.5]}
22... Kf7 {[%clk 0:01:50.8]} 23. Nc5 {[%clk 0:00:01.8]} 23... b6 {[%clk
0:01:44]} 24. Nb3 {[%clk 0:00:01.3]} 24... c5 {[%clk 0:01:42.3]} 25. Rhe1 {[%clk
0:00:01.4]} 25... Nc6 {[%clk 0:01:40]} 26. g3 {[%clk 0:00:01.2]} 26... Nfd4
{[%clk 0:01:35.5]} 27. Kb1 {[%clk 0:00:01.9]} 27... Nxb3 {[%clk 0:01:34.8]} 28.
axb3 {[%clk 0:00:01.9]} 28... Nd4 {[%clk 0:01:35]} 29. Ka2 {[%clk 0:00:01.4]}
29... a5 {[%clk 0:01:31.4]} 30. Re5 {[%clk 0:00:01.3]} 30... a4 {[%clk
0:01:30.6]} 31. bxa4 {[%clk 0:00:01.5]} 31... Rxa4+ {[%clk 0:01:30.6]} 32. Kb1
{[%clk 0:00:01.9]} 32... g6 {[%clk 0:01:29.7]} 33. Rde1 {[%clk 0:00:01.4]} 33...
Nf3 {[%clk 0:01:25.9]} 34. Nxe6 {[%clk 0:00:01.2]} 34... Nxe5 {[%clk 0:01:22.4]}
35. Rxe5 {[%clk 0:00:01.1]} 35... Kf6 {[%clk 0:01:22.2]} 0-1

[Event "Early-Titled-Tuesday-Blitz-May-07-2024"]
[Site "Chess.com"]
[Date "2024.05.07"]
[Round "10"]
[White "talaicito"]
[Black "kritipatel"]
[Result "1-0"]
[WhiteElo "2379"]
[BlackElo "2193"]
[TimeControl "180+1"]
[EndTime "10:01:36 PDT"]
[Termination "talaicito won by resignation"]

1. d4 {[%clk 0:03:00.9]} 1... d5 {[%clk 0:02:58.8]} 2. Nc3 {[%clk 0:03:01.4]}
2... Nf6 {[%clk 0:02:57]} 3. Bf4 {[%clk 0:03:01.8]} 3... a6 {[%clk 0:02:56.9]}
4. e3 {[%clk 0:03:02.2]} 4... e6 {[%clk 0:02:57]} 5. Nf3 {[%clk 0:03:02.7]} 5...
Bd6 {[%clk 0:02:57]} 6. Bd3 {[%clk 0:03:02.2]} 6... O-O {[%clk 0:02:54.4]} 7.
O-O {[%clk 0:03:01.7]} 7... c5 {[%clk 0:02:54.6]} 8. dxc5 {[%clk 0:03:01.3]}
8... Bxc5 {[%clk 0:02:53.8]} 9. e4 {[%clk 0:03:00.6]} 9... d4 {[%clk 0:02:43]}
10. Ne2 {[%clk 0:03:00]} 10... Nc6 {[%clk 0:02:41.9]} 11. a3 {[%clk 0:02:57.8]}
11... Nd7 {[%clk 0:02:31.5]} 12. Ng3 {[%clk 0:02:56.6]} 12... e5 {[%clk
0:02:30.4]} 13. Bd2 {[%clk 0:02:52.8]} 13... Nf6 {[%clk 0:02:22.8]} 14. b4
{[%clk 0:02:08.2]} 14... Bd6 {[%clk 0:02:04.8]} 15. Bg5 {[%clk 0:01:59.1]} 15...
h6 {[%clk 0:02:00.6]} 16. Bh4 {[%clk 0:01:52.6]} 16... g5 {[%clk 0:01:50.2]} 17.
Nxg5 {[%clk 0:01:52.3]} 17... hxg5 {[%clk 0:01:50.5]} 18. Bxg5 {[%clk
0:01:53.2]} 18... Be7 {[%clk 0:01:46.4]} 19. f4 {[%clk 0:01:52.9]} 19... Bg4
{[%clk 0:01:43]} 20. Be2 {[%clk 0:01:30.8]} 20... Bxe2 {[%clk 0:01:32]} 21. Qxe2
{[%clk 0:01:31.7]} 21... Kg7 {[%clk 0:01:29.4]} 22. Nf5+ {[%clk 0:01:28.3]}
22... Kg6 {[%clk 0:01:19.4]} 23. Nxe7+ {[%clk 0:01:19.4]} 23... Qxe7 {[%clk
0:00:59.6]} 24. fxe5 {[%clk 0:01:19]} 24... Nxe5 {[%clk 0:00:48.3]} 25. Rxf6+
{[%clk 0:00:59.3]} 25... Qxf6 {[%clk 0:00:49.2]} 26. Bxf6 {[%clk 0:00:58.3]}
26... Kxf6 {[%clk 0:00:50.1]} 27. Rf1+ {[%clk 0:00:57.3]} 27... Ke6 {[%clk
0:00:49.6]} 28. Qf2 {[%clk 0:00:53]} 28... Rae8 {[%clk 0:00:36.9]} 29. Qxd4
{[%clk 0:00:51]} 29... Rd8 {[%clk 0:00:30.1]} 30. Qb6+ {[%clk 0:00:50.7]} 30...
Rd6 {[%clk 0:00:28.9]} 31. Rf6+ {[%clk 0:00:51]} 31... Kxf6 {[%clk 0:00:24.6]}
32. Qxd6+ {[%clk 0:00:51.9]} 1-0